bitfinex-derivatives/quotes_SOLF0:USTF0_20240829
["timestamp","ask_amount","ask_price","bid_price","bid_amount"]
[1724937724688,3.4391,145.35,145.33,0.05188573]
[1724937724894,26.46472447,145.36,145.33,0.05188573]
[1724937725590,3.4392,145.35,145.33,0.05188573]
[1724937727191,3.4391,145.35,145.33,0.05188573]
[1724937727994,3.4393,145.34,145.33,0.05188573]
[1724937728591,3.4391,145.35,145.33,0.05188573]
[1724937729181,3.4404,145.3,145.27,3.441]
[1724937729492,26.43,145.33,145.23,26.43]
[1724937729791,3.4401,145.31,145.27,3.4408]
[1724937730289,0.04738664,145.3,145.28,0.04987663]
[1724937730784,0.04738664,145.3,145.28,3.49047663]
[1724937730992,0.04738664,145.3,145.28,0.04987663]
[1724937731394,0.04738664,145.3,145.28,3.49057663]
[1724937733286,0.04738664,145.3,145.28,0.04987663]
[1724937733486,0.04738664,145.3,145.29,3.4405]
[1724937734990,0.04738664,145.3,145.28,3.49047663]
[1724937737094,0.04738664,145.3,145.28,0.04987663]
[1724937740297,3.4405,145.29,145.28,0.04987663]
[1724937740996,29.8705,145.29,145.28,0.04987663]
[1724937742294,26.43,145.29,145.28,0.04987663]
[1724937743301,3.48778664,145.3,145.28,0.04987663]
[1724937744004,10.56,145.29,145.28,0.04987663]
[1724937744197,10.56,145.29,145.28,3.49057663]
[1724937744894,0.04738664,145.3,145.29,3.4405]
[1724937750408,0.04738664,145.3,145.28,0.04987663]
[1724937750409,10.56,145.33,145.32,3.4397]
[1724937751400,0.05200284,145.34,145.31,0.04925225]
[1724937751905,10.56,145.37,145.36,3.4388]
[1724937753403,0.04745407,145.38,145.36,3.4388]
[1724937753608,0.04745407,145.38,145.37,3.4386]
[1724937753816,10.60745407,145.38,145.37,3.4386]
[1724937754712,0.04745407,145.38,145.37,3.4386]
[1724937754930,562.0,145.52,145.36,10.56]
[1724937755211,10.56,145.43,145.42,3.4372]
[1724937755714,10.56,145.43,145.41,3.4376]
[1724937756006,0.04482044,145.43,145.41,3.48878259]
[1724937756409,0.04482044,145.43,145.41,0.05118259]
[1724937759009,26.4,145.42,145.41,0.05118259]
[1724937760423,29.8374,145.42,145.41,0.05118259]
[1724937762109,3.4382,145.39,145.3,26.4]
[1724937762305,29.8382,145.39,145.31,1.3155]
[1724937762518,29.8382,145.39,145.35,3.4389]
[1724937762714,26.4,145.39,145.31,1.3155]
[1724937763110,0.04804128,145.36,145.35,3.439]
[1724937768811,0.04804128,145.36,145.34,0.04470856]
[1724937769416,0.04804128,145.36,145.35,3.4391]
[1724937789931,0.04804128,145.36,145.34,0.04470856]
[1724937790931,3.4391,145.35,145.34,0.04470856]
[1724937795837,14.0091,145.35,145.34,0.04470856]
[1724937796636,10.57,145.35,145.26,13.2165]
[1724937796829,10.57,145.32,145.26,13.2165]
[1724937797032,14.0097,145.33,145.26,13.2165]
[1724937797237,10.57,145.34,145.28,10.57]
[1724937797432,10.57,145.34,145.31,3.4399]
[1724937797633,0.04624879,145.34,145.31,0.05260987]
[1724937798133,0.04624879,145.34,145.32,3.4396]
[1724937799740,3.48554879,145.34,145.32,3.4396]
[1724937799936,0.04624879,145.34,145.31,3.49260987]
[1724937800536,14.05554879,145.34,145.31,3.49260987]
[1724937801641,3.4397,145.33,145.31,0.05260987]
[1724937802649,14.0097,145.33,145.31,0.05260987]
[1724937802941,3.4398,145.32,145.31,0.05260987]
[1724937804643,14.0096,145.33,145.31,0.05260987]
[1724937805741,3.4398,145.32,145.31,0.05260987]
[1724937814943,14.0098,145.32,145.31,0.05260987]
[1724937820548,14.0098,145.32,145.26,3.4411]
[1724937820549,3.4406,145.29,145.26,3.4411]
[1724937820749,10.57,145.29,145.23,5.93798596]
[1724937820948,3.44562869,145.31,145.23,13.1119]
[1724937820949,10.57,145.3,145.23,13.1119]
[1724937821148,14.0104,145.3,145.27,3.4409]
[1724937821755,14.06141804,145.3,145.27,3.48794802]
[1724937822854,10.62101804,145.3,145.28,3.4407]
[1724937823054,10.62101804,145.3,145.27,0.04704802]
[1724937823562,10.62101804,145.3,145.28,3.4406]
[1724937823754,10.62101804,145.3,145.27,0.04704802]
[1724937824258,14.06141804,145.3,145.27,0.04704802]
[1724937825054,14.06141804,145.3,145.27,3.48784802]
[1724937828161,14.06141804,145.3,145.28,3.4407]
[1724937828361,10.62101804,145.3,145.28,3.4407]
[1724937831772,14.06131804,145.3,145.27,3.48784802]
[1724937834068,10.62101804,145.3,145.27,0.04704802]
[1724937834670,3.4406,145.29,145.27,0.04704802]
[1724937837881,14.06131804,145.3,145.27,3.48794802]
[1724937838380,10.62101804,145.3,145.28,3.4407]
[1724937838784,10.62101804,145.3,145.27,0.04704802]
[1724937839177,3.4405,145.29,145.27,0.04704802]
[1724937842586,3.4405,145.29,145.27,3.48804802]
[1724937843092,14.06141804,145.3,145.27,3.48804802]
[1724937844088,10.62101804,145.3,145.27,0.04704802]
[1724937844885,10.62101804,145.3,145.28,3.4406]
[1724937846892,10.62101804,145.3,145.29,3.4405]
[1724937847194,14.06141804,145.3,145.27,0.04704802]
[1724937847587,10.62101804,145.3,145.27,3.48794802]
[1724937847993,10.62101804,145.3,145.27,0.04704802]
[1724937848189,10.62101804,145.3,145.27,3.48794802]
[1724937848889,14.06131804,145.3,145.28,3.4407]
[1724937849490,14.0105,145.29,145.27,3.48794802]
[1724937851700,10.57,145.29,145.27,0.04704802]
[1724937853303,10.57,145.29,145.27,3.48784802]
[1724937853304,14.0106,145.29,145.27,3.48784802]
[1724937855098,3.4407,145.28,145.27,0.04704802]
[1724937855305,14.0107,145.28,145.27,0.04704802]
[1724937855996,10.57,145.28,145.27,0.04704802]
[1724937856905,14.0107,145.28,145.27,0.04704802]
[1724937860302,3.4406,145.29,145.27,0.04704802]
[1724937860601,0.05101804,145.3,145.27,0.04704802]
[1724937861103,3.4405,145.29,145.27,3.48784802]
[1724937866311,10.57,145.28,145.27,3.48784802]
[1724937866710,10.57,145.28,145.27,0.04704802]
[1724937868013,14.0107,145.28,145.27,0.04704802]
[1724937870209,10.57,145.28,145.27,3.48804802]
[1724937870416,10.57,145.28,145.27,0.04704802]
[1724937870906,14.0107,145.28,145.27,0.04704802]
[1724937872113,10.57,145.28,145.27,0.04704802]
[1724937872710,14.0107,145.28,145.27,0.04704802]
[1724937873414,10.57,145.28,145.27,0.04704802]
[1724937874314,14.0107,145.28,145.27,0.04704802]
[1724937887042,10.57,145.28,145.27,0.04704802]
[1724937888448,14.0107,145.28,145.27,0.04704802]
[1724937888940,3.4407,145.28,145.27,0.04704802]
[1724937889137,14.0106,145.29,145.27,0.04704802]
[1724937889339,10.57,145.29,145.27,0.04704802]
[1724937889743,14.0106,145.29,145.27,0.04704802]
[1724937891338,10.57,145.28,145.27,0.04704802]
[1724937891542,14.0107,145.28,145.27,0.04704802]
[1724937898855,14.0106,145.29,145.27,0.04704802]
[1724937899752,3.4407,145.28,145.27,0.04704802]
[1724937901050,10.65234606,145.28,145.27,0.04704802]
[1724937901251,3.4407,145.28,145.27,0.04704802]
[1724937901552,10.65207029,145.28,145.27,0.04704802]
[1724937901751,21.22207029,145.28,145.27,0.04704802]
[1724937901947,21.22207029,145.28,145.24,3.4416]
[1724937901948,3.4411,145.27,145.24,3.4416]
[1724937902153,7.21137029,145.26,145.22,14.02253314]
[1724937902352,71.71547768,145.28,145.24,3.4416]
[1724937902548,10.65058117,145.27,145.24,3.4416]
[1724937902852,3.49202424,145.27,145.24,0.0487838]
[1724937903949,3.4412,145.26,145.24,0.0487838]
[1724937909856,3.49192424,145.27,145.24,3.4903838]
[1724937910355,0.05092424,145.27,145.26,3.4412]
[1724937910556,0.05092424,145.27,145.24,1.2952838]
[1724937911052,0.05092424,145.27,145.24,4.7368838]
[1724937911852,0.05092424,145.27,145.25,3.4414]
[1724937912346,0.05092424,145.27,145.24,1.2952838]
[1724937912347,10.57,145.26,145.24,1.2952838]
[1724937912554,0.05092424,145.27,145.24,4.7367838]
[1724937914159,0.05092424,145.27,145.25,3.4414]
[1724937917662,0.05092424,145.27,145.24,0.0487838]
[1724937917860,42.28,145.25,145.17,4.12854918]
[1724937918053,10.57,145.26,145.1,2.5861]
[1724937918054,10.57,145.18,145.1,2.5861]
[1724937918259,10.57,145.12,145.11,4.69892306]
[1724937918458,10.57,145.12,145.11,3.4448]
[1724937920352,10.57,145.12,145.1,2.63648978]
[1724937920558,10.57,145.11,145.1,2.63648978]
[1724937921460,10.57,145.11,145.05,1.2645]
[1724937921755,10.57,145.08,145.06,2.6034]
[1724937921958,56.70573941,145.18,144.95,2.6369]
[1724937921959,10.57,145.06,144.95,2.6369]
[1724937922160,42.28,145.07,144.95,2.6369]
[1724937922161,42.28,145.07,144.96,11.82509641]
[1724937922362,10.57,145.02,144.97,1.25509641]
[1724937922564,10.57,145.04,145.0,3.4472]
[1724937923160,56.70573941,145.18,144.9,84.44116344]
[1724937923161,10.57,145.06,144.9,84.44116344]
[1724937923461,10.57,144.99,144.92,10.57]
[1724937923758,0.04813787,144.97,144.94,0.05286194]
[1724937925155,0.04813787,144.97,144.94,3.50166194]
[1724937927062,14.0171,145.01,144.95,3.4485]
[1724937927267,10.57,145.01,144.94,10.57]
[1724937927464,10.57,145.01,144.96,3.4483]
[1724937928164,0.04675584,145.0,144.97,0.04818777]
[1724937929161,0.04675584,145.0,144.98,3.4478]
[1724937930369,0.04675584,145.0,144.97,0.04818777]
[1724937930575,10.61675584,145.0,144.97,0.04818777]
[1724937931069,10.61675584,145.0,144.97,3.49618777]
[1724937931466,223.0,145.13,144.99,10.57]
[1724937931666,10.57,145.09,145.04,3.4463]
[1724937931876,223.0,145.13,145.04,10.57]
[1724937932069,14.0148,145.11,145.07,3.4457]
[1724937932271,14.0148,145.11,145.04,10.57]
[1724937932468,0.04802394,145.09,145.06,0.04418877]
[1724937932668,0.04705176,145.09,145.06,3.49883073]
[1724937933068,0.04705176,145.09,145.06,0.05293073]
[1724937933767,0.04705176,145.09,145.06,3.49873073]
[1724937935573,0.04705176,145.09,145.07,3.4457]
[1724937935873,0.04705176,145.09,145.06,0.05293073]
[1724937937173,0.04705176,145.09,145.07,3.4457]
[1724937937566,0.04705176,145.09,145.06,0.05293073]
[1724937937766,0.04705176,145.09,145.07,3.4455]
[1724937937968,10.61705176,145.09,145.06,0.05293073]
[1724937938474,10.57,145.08,145.06,0.05293073]
[1724937939174,14.0155,145.08,145.06,0.05293073]
[1724937940066,10.57,145.08,145.06,0.05293073]
[1724937940669,14.0156,145.08,145.06,0.05293073]
[1724937941470,10.57,145.08,145.06,0.05293073]
[1724937942778,0.04705176,145.09,145.06,0.05293073]
[1724937942779,10.61705176,145.09,145.06,0.05293073]
[1724937942981,10.61705176,145.09,145.07,3.4457]
[1724937943172,10.61705176,145.09,145.06,0.05293073]
[1724937943872,0.04705176,145.09,145.06,0.05293073]
[1724937944877,10.61705176,145.09,145.06,0.05293073]
[1724937945780,10.61705176,145.09,145.07,3.4456]
[1724937946177,10.57,145.08,145.06,0.05293073]
[1724937946481,10.57,145.08,145.06,3.49883073]
[1724937947374,10.57,145.07,145.06,0.05293073]
[1724937947985,26.46,145.07,145.06,0.05293073]
[1724937949283,29.9057,145.07,145.06,0.05293073]
[1724937949480,26.46,145.07,145.06,0.05293073]
[1724937950377,0.04705176,145.09,145.06,0.05293073]
[1724937950579,29.95245176,145.09,145.06,0.05293073]
[1724937951175,26.50705176,145.09,145.06,0.05293073]
[1724937951979,26.46,145.08,145.06,0.05293073]
[1724937952881,29.9056,145.08,145.06,0.05293073]
[1724937954282,3.4457,145.07,145.06,0.05293073]
[1724937955485,29.9055,145.08,145.06,0.05293073]
[1724937956381,3.4457,145.07,145.06,0.05293073]
[1724937958886,0.04705176,145.09,145.06,0.05293073]
[1724937958887,26.50705176,145.09,145.06,0.05293073]
[1724937959393,3.4457,145.07,145.06,0.05293073]
[1724937960292,0.04705176,145.09,145.06,0.05293073]
[1724937960681,0.04705176,145.09,145.06,3.49873073]
[1724937960888,0.04705176,145.09,145.06,0.05293073]
[1724937961085,26.46,145.08,145.06,0.05293073]
[1724937961588,3.4457,145.07,145.06,0.05293073]
[1724937962087,52.92,145.08,145.0,1.3789]
[1724937962291,26.46,145.02,144.93,27.798]
[1724937962491,26.46,145.02,144.94,1.2947]
[1724937962888,26.46,145.02,144.98,3.4477]
[1724937963385,0.04859019,145.01,144.99,0.04349371]
[1724937966586,0.04859019,145.01,145.0,3.4474]
[1724937967394,0.04859019,145.01,144.99,4.82359371]
[1724937967593,0.04859019,145.01,144.99,3.49109371]
[1724937967792,0.04859019,145.01,144.99,0.04349371]
[1724937968088,0.04859019,145.01,144.8,27.11763935]
[1724937968089,10.6,145.0,144.91,14.07744218]
[1724937968287,10.6,144.98,144.88,3.9159]
[1724937968495,10.6,144.98,144.91,10.6]
[1724937968700,10.6,144.99,144.93,10.6]
[1724937968894,0.04949156,144.97,144.95,0.04491105]
[1724937969291,0.04949156,144.97,144.96,3.4482]
[1724937971299,42.4,145.08,144.96,3.4482]
[1724937971300,10.6,145.03,144.96,10.6]
[1724937971489,10.6,145.03,144.97,10.6]
[1724937971793,10.6,145.01,144.95,10.6]
[1724937971988,10.6,145.01,144.97,3.4479]
[1724937972392,10.6,145.01,144.98,0.04992506]
[1724937972593,0.04576036,145.0,144.98,0.04992506]
[1724937972887,0.04576036,145.0,144.98,3.49772506]
[1724937974000,0.04576036,145.0,144.98,0.04992506]
[1724937974591,10.6,144.99,144.98,0.04992506]
[1724937976293,0.04576036,145.0,144.98,3.49772506]
[1724937976500,0.04576036,145.0,144.98,0.04992506]
[1724937977590,0.04576036,145.0,144.98,3.49762506]
[1724937977897,0.04576036,145.0,144.98,0.04992506]
[1724937978101,0.04576036,145.0,144.99,3.4476]
[1724937979591,10.6,145.03,145.0,3.4472]
[1724937980600,10.6,145.03,144.98,0.04992506]
[1724937980601,0.05214469,145.03,144.99,10.6]
[1724937980900,0.05214469,145.03,145.0,2.6107]
[1724937981399,10.65214469,145.03,145.0,2.6107]
[1724937982003,10.65214469,145.03,145.01,3.4471]
[1724937982997,0.05214469,145.03,145.02,3.4469]
[1724937987407,42.4,145.15,145.05,3.4461]
[1724937987613,10.6,145.06,145.05,3.4461]
[1724937989310,10.6,145.06,145.04,3.49647783]
[1724937989615,10.6,145.06,145.04,0.05017783]
[1724937990011,10.6,145.06,145.05,3.4462]
[1724937990308,10.6,145.06,145.04,0.05017783]
[1724937990509,10.6,145.06,145.05,3.4462]
[1724937992009,10.6,145.06,145.04,3.49637783]
[1724937992212,10.6,145.05,145.04,3.49637783]
[1724937992811,10.6,145.05,145.04,0.05017783]
[1724937998220,14.0462,145.05,145.04,0.05017783]
[1724938002518,3.4468,145.03,145.0,2.6107]
[1724938002717,10.6,145.02,145.0,2.6107]
[1724938002914,14.047,145.02,144.97,1.3386]
[1724938003517,0.05198397,145.01,144.99,3.4474]
[1724938004015,0.05198397,145.01,145.0,3.4474]
[1724938004716,0.05198397,145.01,144.99,3.4475]
[1724938004916,10.65198397,145.01,144.99,3.4475]
[1724938005220,10.65198397,145.01,144.98,0.04645521]
[1724938006513,3.4475,145.0,144.98,0.04645521]
[1724938007620,14.0476,144.99,144.98,0.04645521]
[1724938011826,3.4482,144.97,144.95,3.4485]
[1724938012022,10.6,144.96,144.93,2.6412]
[1724938012824,10.64934846,144.96,144.94,3.4486]
[1724938013322,10.64934846,144.96,144.95,3.4486]
[1724938014921,0.04934846,144.96,144.95,3.4486]
[1724938015915,0.04934846,144.96,144.94,3.4487]
[1724938017127,0.04934846,144.96,144.95,3.4486]
[1724938018427,10.64934846,144.96,144.95,3.4486]
[1724938018633,10.64934846,144.96,144.94,3.4487]
[1724938018928,10.64934846,144.96,144.93,2.69092287]
[1724938019628,10.64934846,144.96,144.95,3.4486]
[1724938020331,10.64934846,144.96,144.94,3.4487]
[1724938021627,0.04934846,144.96,144.93,0.04972287]
[1724938022224,0.04934846,144.96,144.94,3.4487]
[1724938022627,10.6,145.0,144.93,10.64972287]
[1724938023326,10.6,144.98,144.93,0.04972287]
[1724938023529,10.6,144.98,144.92,10.6]
[1724938023733,0.04920148,144.97,144.94,0.05039863]
[1724938024436,0.04920148,144.97,144.95,3.4484]
[1724938027840,10.64920148,144.97,144.94,0.05039863]
[1724938028131,10.64920148,144.97,144.72,9.56075786]
[1724938028132,53.0,144.95,144.72,9.56075786]
[1724938028337,10.6,144.84,144.8,2.6503]
[1724938028540,42.4,144.86,144.69,6.9095]
[1724938028739,10.6,144.79,144.74,1.3469]
[1724938028936,10.6,144.79,144.74,4.7656561]
[1724938029134,0.04677719,144.78,144.75,0.04406051]
[1724938029335,0.04677719,144.78,144.77,3.4528]
[1724938029736,0.04677719,144.78,144.75,0.04406051]
[1724938029737,10.64677719,144.78,144.75,3.49736051]
[1724938029938,10.6,144.76,144.75,0.04406051]
[1724938030235,0.04677719,144.78,144.67,3.455]
[1724938030236,3.4537,144.74,144.67,3.455]
[1724938030538,3.4537,144.74,144.57,6.9152]
[1724938030539,26.54,144.71,144.64,3.50730153]
[1724938030738,26.54,144.71,144.65,1.2897]
[1724938031043,26.54,144.73,144.65,1.2897]
[1724938031335,0.0481745,144.7,144.68,0.04654515]
[1724938032140,0.0481745,144.7,144.68,3.50144515]
[1724938032533,0.0481745,144.7,144.68,0.04654515]
[1724938033339,0.0481745,144.7,144.69,3.4547]
[1724938033627,26.54,144.79,144.69,26.54]
[1724938034434,0.04489855,144.75,144.73,0.04946897]
[1724938035439,26.54,144.83,144.73,26.58946897]
[1724938035634,26.54,144.83,144.73,26.54]
[1724938035840,0.2048,144.9,144.77,26.54]
[1724938036036,26.54,144.87,144.78,1.3308]
[1724938036341,0.05254043,144.84,144.83,3.4513]
[1724938036732,0.05254043,144.84,144.81,0.04774408]
[1724938040042,0.05254043,144.84,144.81,3.49964408]
[1724938040945,0.05254043,144.84,144.81,0.04774408]
[1724938041350,0.05254043,144.84,144.83,3.4514]
[1724938042241,0.05254043,144.84,144.82,3.4516]
[1724938042940,0.05254043,144.84,144.81,3.49954408]
[1724938043141,30.04374043,144.84,144.81,3.49954408]
[1724938043546,30.04374043,144.84,144.81,0.04774408]
[1724938043751,3.4515,144.83,144.81,0.04774408]
[1724938043940,26.59254043,144.84,144.81,0.04774408]
[1724938044141,0.05254043,144.84,144.81,0.04774408]
[1724938044959,0.05254043,144.84,144.82,3.4516]
[1724938045159,0.05254043,144.84,144.81,0.04774408]
[1724938046763,0.05254043,144.84,144.82,3.4515]
[1724938047857,3.50374043,144.84,144.81,3.49944408]
[1724938048963,3.50374043,144.84,144.82,3.4516]
[1724938049467,0.05254043,144.84,144.81,0.04774408]
[1724938049762,0.05254043,144.84,144.82,3.4516]
[1724938049958,0.05254043,144.84,144.81,0.04774408]
[1724938050154,0.05254043,144.84,144.81,3.49964408]
[1724938050465,3.50384043,144.84,144.81,0.04774408]
[1724938050762,3.50384043,144.84,144.81,3.49964408]
[1724938051554,3.50384043,144.84,144.81,0.04774408]
[1724938051954,3.4514,144.83,144.81,0.04774408]
[1724938052366,3.50384043,144.84,144.81,3.49954408]
[1724938053664,0.05254043,144.84,144.81,0.04774408]
[1724938054159,0.05254043,144.84,144.83,3.4514]
[1724938055265,0.05254043,144.84,144.81,0.04774408]
[1724938055266,0.05254043,144.84,144.82,3.4516]
[1724938055464,0.05254043,144.84,144.81,0.04774408]
[1724938055659,0.05254043,144.84,144.83,3.4514]
[1724938062760,0.05254043,144.84,144.81,0.04774408]
[1724938063365,0.05254043,144.84,144.82,3.4516]
[1724938063563,0.05254043,144.84,144.81,0.04774408]
[1724938064169,0.05254043,144.84,144.82,3.4516]
[1724938065474,3.50374043,144.84,144.82,3.4516]
[1724938065865,0.05254043,144.84,144.81,0.04774408]
[1724938066069,3.4516,144.83,144.81,0.04774408]
[1724938066967,3.4516,144.83,144.81,3.49964408]
[1724938068672,0.05254043,144.84,144.81,0.04774408]
[1724938069068,29.9916,144.83,144.81,0.04774408]
[1724938069372,26.54,144.83,144.81,0.04774408]
[1724938069963,0.05254043,144.84,144.81,0.04774408]
[1724938069964,14.0616,144.82,144.81,0.04774408]
[1724938070472,3.4522,144.8,144.76,1.3586]
[1724938070671,10.61,144.77,144.76,1.3586]
[1724938071970,0.05235759,144.78,144.76,1.3586]
[1724938072170,0.05235759,144.78,144.76,4.8116]
[1724938072974,0.05235759,144.78,144.76,1.3586]
[1724938073176,26.58235759,144.78,144.75,0.0454527]
[1724938073376,0.05235759,144.78,144.75,0.0454527]
[1724938073576,0.05235759,144.78,144.77,3.4528]
[1724938075379,0.05235759,144.78,144.76,4.802]
[1724938076774,0.05235759,144.78,144.76,3.4529]
[1724938077288,0.05235759,144.78,144.75,3.4986527]
[1724938077473,26.58235759,144.78,144.75,0.0454527]
[1724938077872,3.453,144.77,144.75,0.0454527]
[1724938078281,3.4531,144.76,144.75,0.0454527]
[1724938080279,0.05235759,144.78,144.77,3.4528]
[1724938080483,26.53,144.84,144.73,26.53]
[1724938080682,26.53,144.84,144.74,1.3605]
[1724938080988,3.4519,144.81,144.78,3.4525]
[1724938081382,3.4519,144.81,144.74,1.3605]
[1724938081579,0.04585296,144.79,144.76,0.04385902]
[1724938081780,26.53,144.84,144.76,0.04385902]
[1724938082080,29.9814,144.84,144.76,0.04385902]
[1724938082279,26.53,144.86,144.77,26.53]
[1724938082587,29.9809,144.86,144.83,3.4514]
[1724938082785,30.03054217,144.86,144.83,3.49750214]
[1724938083977,0.04964217,144.86,144.83,0.04610214]
[1724938084785,0.04964217,144.86,144.85,3.4509]
[1724938087579,0.04964217,144.86,144.84,3.4511]
[1724938088487,3.50034217,144.86,144.83,3.49740214]
[1724938089689,26.53,144.84,144.83,0.04610214]
[1724938090389,29.9812,144.84,144.83,0.04610214]
[1724938091487,3.4512,144.84,144.83,0.04610214]
[1724938092593,29.9812,144.84,144.83,0.04610214]
[1724938094096,26.53,144.82,144.76,1.2645]
[1724938094595,3.452,144.81,144.76,1.2645]
[1724938094791,26.53,144.82,144.76,1.2645]
[1724938094993,26.53,144.84,144.8,3.4521]
[1724938095189,3.49709497,144.83,144.81,0.05271043]
[1724938095897,3.49709497,144.83,144.81,3.50451043]
[1724938096198,3.49709497,144.83,144.81,0.05271043]
[1724938096794,3.4516,144.82,144.81,0.05271043]
[1724938097099,29.9816,144.82,144.81,0.05271043]
[1724938097300,26.53,144.82,144.76,1.2645]
[1724938097695,3.4523,144.8,144.77,3.4527]
[1724938097998,3.4523,144.8,144.76,1.2645]
[1724938098504,0.05084455,144.79,144.77,3.49772038]
[1724938098799,0.05084455,144.79,144.77,0.04512038]
[1724938099500,3.4526,144.78,144.77,0.04512038]
[1724938100391,30.03334455,144.79,144.77,0.04512038]
[1724938102498,3.4526,144.78,144.77,0.04512038]
[1724938102704,29.9826,144.78,144.77,0.04512038]
[1724938106302,26.53,144.78,144.77,0.04512038]
[1724938107302,30.03334455,144.79,144.77,0.04512038]
[1724938107597,0.05084455,144.79,144.78,3.4526]
[1724938108001,29.9813,144.84,144.81,3.4517]
[1724938109202,30.02492273,144.84,144.81,3.50395377]
[1724938109406,30.02492273,144.84,144.82,3.4516]
[1724938110104,26.57362273,144.84,144.83,3.4514]
[1724938110499,26.57362273,144.84,144.82,3.4515]
[1724938111801,30.02482273,144.84,144.81,3.50405377]
[1724938114114,3.4514,144.83,144.81,3.50405377]
[1724938115695,3.4516,144.82,144.81,0.05225377]
[1724938116002,29.9816,144.82,144.81,0.05225377]
[1724938118002,26.53,144.82,144.81,0.05225377]
[1724938118204,3.4515,144.83,144.81,0.05225377]
[1724938118205,26.53,144.83,144.81,0.05225377]
[1724938119403,29.9816,144.83,144.81,0.05225377]
[1724938119714,26.53,144.83,144.81,0.05225377]
[1724938120100,26.53,144.83,144.82,3.4516]
[1724938123511,0.04362273,144.84,144.83,3.4514]
[1724938124117,10.64362273,144.84,144.83,3.4514]
[1724938126617,10.64362273,144.84,144.81,0.05225377]
[1724938126818,10.6,144.82,144.81,0.05225377]
[1724938127312,0.04362273,144.84,144.81,0.05225377]
[1724938127522,10.6,144.83,144.81,0.05225377]
[1724938127820,10.64362273,144.84,144.81,0.05225377]
[1724938129122,10.6,144.83,144.82,3.4516]
[1724938130925,10.64362273,144.84,144.83,3.4514]
[1724938132821,0.04362273,144.84,144.83,3.4514]
[1724938139824,10.6,144.88,144.86,3.4505]
[1724938140414,10.6,144.88,144.87,3.4505]
[1724938140623,10.6,144.89,144.87,3.4505]
[1724938140921,10.6475408,144.89,144.87,3.50119703]
[1724938141314,14.0975408,144.89,144.87,3.50119703]
[1724938141520,10.6475408,144.89,144.88,3.4502]
[1724938142125,0.0475408,144.89,144.88,3.4502]
[1724938152734,3.4491,144.93,144.91,3.4494]
[1724938153636,3.49342475,144.93,144.91,3.49645103]
[1724938157038,3.49342475,144.93,144.91,0.04705103]
[1724938157635,3.4493,144.92,144.91,0.04705103]
[1724938158035,0.04432475,144.93,144.91,0.04705103]
[1724938158733,0.04432475,144.93,144.92,3.4493]
[1724938159039,0.04432475,144.93,144.92,14.0493]
[1724938159238,3.448,144.98,144.95,3.4485]
[1724938159637,10.6,144.99,144.92,11.9653]
[1724938159840,3.4482,144.97,144.94,3.4487]
[1724938160037,3.4482,144.97,144.92,1.3653]
[1724938160241,0.04998256,144.96,144.93,0.05064179]
[1724938160839,0.04998256,144.96,144.95,3.4486]
[1724938162947,0.04998256,144.96,144.94,3.4487]
[1724938163537,0.04998256,144.96,144.95,3.4486]
[1724938177253,0.04998256,144.96,144.95,14.0486]
[1724938178256,0.04998256,144.96,144.95,3.4486]
[1724938186952,10.64998256,144.96,144.93,0.05064179]
[1724938187359,10.64998256,144.96,144.94,3.4486]
[1724938187858,0.04998256,144.96,144.93,10.65064179]
[1724938188157,0.04998256,144.96,144.95,3.4486]
[1724938188959,0.04998256,144.96,144.93,0.05064179]
[1724938189857,0.04998256,144.96,144.94,3.4486]
[1724938191360,3.4486,144.95,144.93,3.49964179]
[1724938191563,10.6,144.94,144.93,3.49964179]
[1724938191851,10.6,144.94,144.93,0.05064179]
[1724938192056,14.0488,144.94,144.93,0.05064179]
[1724938192252,10.6,144.94,144.93,0.05064179]
[1724938193151,10.6,144.94,144.93,3.49964179]
[1724938193353,10.64998256,144.96,144.93,3.49964179]
[1724938193857,14.09848256,144.96,144.93,3.49964179]
[1724938194352,0.04998256,144.96,144.94,3.4488]
[1724938194750,10.6,144.95,144.93,0.05064179]
[1724938195149,3.4488,144.94,144.93,0.05064179]
[1724938196155,14.0486,144.95,144.93,0.05064179]
[1724938198364,3.4488,144.94,144.93,0.05064179]
[1724938198561,0.04998256,144.96,144.93,0.05064179]